bitfinex/quotes_SOLUSD_20240605
["timestamp","ask_amount","ask_price","bid_price","bid_amount"]
[1717578171743,4.2722,173.21,173.17,2.4766]
[1717578171744,2.1362,173.21,173.17,2.4766]
[1717578171943,7.19,173.2,173.17,2.3066]
[1717578172235,9.3262,173.2,173.18,0.17]
[1717578176458,9.3262,173.2,173.17,0.34]
[1717578177659,2.1362,173.2,173.17,2.4766]
[1717578177958,9.3262,173.2,173.17,0.34]
[1717578178258,9.3262,173.2,173.17,2.4766]
[1717578178443,9.3262,173.2,173.17,0.34]
[1717578178944,2.1363,173.19,173.17,0.34]
[1717578180464,9.3263,173.19,173.17,0.34]
[1717578180641,9.3263,173.19,173.16,2.4767]
[1717578181758,9.3263,173.19,173.13,6.3054]
[1717578181759,2.1369,173.15,173.12,2.1371]
[1717578181946,7.19,173.13,173.09,2.1375]
[1717578182150,13.6003,173.16,173.08,6.5868]
[1717578182151,7.19,173.11,173.08,2.1376]
[1717578182446,7.19,173.1,173.07,382.4377]
[1717578182640,7.19,173.1,173.07,2.1377]
[1717578183334,9.3274,173.11,173.08,2.3077]
[1717578183547,7.19,173.11,173.09,0.17]
[1717578183739,7.19,173.11,173.09,2.3076]
[1717578184155,9.3273,173.12,173.09,2.3076]
[1717578184858,9.3273,173.12,173.09,0.17]
[1717578185859,2.1373,173.11,173.09,0.17]
[1717578186064,9.3273,173.12,173.09,0.17]
[1717578186445,9.3273,173.11,173.09,0.17]
[1717578186752,9.3274,173.1,173.09,0.17]
[1717578187566,7.19,173.1,173.09,0.17]
[1717578187738,7.19,173.1,173.08,0.34]
[1717578188144,7.19,173.1,173.08,2.4777]
[1717578188456,7.19,173.1,173.08,0.34]
[1717578188649,7.19,173.1,173.08,2.4777]
[1717578189241,9.3274,173.11,173.08,2.4777]
[1717578190359,7.19,173.11,173.08,2.4777]
[1717578190670,7.19,173.12,173.1,2.1374]
[1717578190856,2.1371,173.13,173.1,2.1374]
[1717578191055,4.2739,173.15,173.1,2.1374]
[1717578191056,7.19,173.12,173.1,2.1374]
[1717578191443,2.137,173.14,173.1,2.1374]
[1717578191644,7.19,173.13,173.1,2.1374]
[1717578192044,2.1371,173.13,173.1,2.1374]
[1717578192271,4.2734,173.17,173.11,0.34]
[1717578192574,11.03412522,173.2,173.14,2.1369]
[1717578192874,7.19,173.16,173.14,2.1369]
[1717578193168,9.3266,173.17,173.14,2.1369]
[1717578193346,2.1366,173.17,173.14,2.1369]
[1717578193550,2.1366,173.17,173.13,47.307]
[1717578193751,7.19,173.16,173.13,47.307]
[1717578193951,7.19,173.16,173.13,2.307]
[1717578194145,2.1366,173.17,173.13,2.307]
[1717578194346,7.19,173.16,173.13,2.307]
[1717578195571,7.19,173.15,173.13,2.307]
[1717578197357,2.1366,173.17,173.13,2.307]
[1717578197558,7.19,173.16,173.14,2.1369]
[1717578199984,2.1365,173.18,173.14,2.1369]
[1717578200195,7.19,173.16,173.14,2.1369]
[1717578200788,7.19,173.15,173.09,10.2817]
[1717578200963,7.19,173.11,173.07,4.2755]
[1717578201164,7.19,173.09,173.05,6.1883]
[1717578201485,7.19,173.08,173.03,10.4649]
[1717578201660,7.19,173.08,173.04,4.2764]
[1717578202083,7.19,173.08,173.06,2.1379]
[1717578202280,7.19,173.08,173.07,2.1378]
[1717578202487,2.1372,173.13,173.09,2.1375]
[1717578202898,0.31005039,173.15,173.06,120.0]
[1717578203192,7.19,173.13,173.11,2.1373]
[1717578205374,2.137,173.14,173.11,2.1373]
[1717578205576,7.19,173.14,173.11,2.1373]
[1717578206588,7.19,173.14,173.12,2.1372]
[1717578206976,7.19,173.15,173.13,2.1371]
[1717578207173,2.1366,173.17,173.14,2.1369]
[1717578207382,7.19,173.16,173.13,2.137]
[1717578208189,7.19,173.16,173.12,45.17]
[1717578208190,2.1369,173.15,173.12,45.17]
[1717578208358,7.19,173.13,173.12,45.0]
[1717578209382,7.19,173.14,173.12,45.0]
[1717578210658,7.19,173.13,173.12,45.0]
[1717578215398,2.1365,173.18,173.14,2.1369]
[1717578215768,7.19,173.16,173.14,2.1369]
[1717578216378,2.1365,173.18,173.14,2.1369]
[1717578216694,7.19,173.16,173.14,2.1369]
[1717578219388,7.19,173.15,173.14,2.1369]
[1717578219691,7.19,173.15,173.14,2.3069]
[1717578220386,7.19,173.16,173.14,2.3069]
[1717578220597,7.19,173.16,173.14,0.17]
[1717578223392,9.3267,173.16,173.14,0.17]
[1717578223593,9.3267,173.16,173.13,0.34]
[1717578223896,2.1368,173.15,173.13,0.34]
[1717578224072,4.273,173.18,173.13,0.34]
[1717578224073,7.19,173.14,173.13,0.34]
[1717578225892,7.19,173.14,173.13,2.4771]
[1717578227799,7.19,173.14,173.13,0.34]
[1717578228094,7.19,173.14,173.13,2.4771]
[1717578230311,2.1367,173.17,173.13,2.4771]
[1717578230512,7.19,173.14,173.13,2.4771]
[1717578234607,2.1367,173.17,173.13,2.4771]
[1717578234810,7.19,173.14,173.13,2.4771]
[1717578235314,2.1367,173.17,173.14,2.1369]
[1717578235482,7.19,173.15,173.14,2.1369]
[1717578235679,7.19,173.15,173.14,2.3069]
[1717578235986,7.19,173.15,173.14,0.17]
[1717578236203,7.19,173.15,173.13,0.34]
[1717578244523,9.327,173.14,173.1,2.1374]
[1717578244732,9.327,173.14,173.06,6.1128]
[1717578244733,7.19,173.11,173.09,2.1375]
[1717578244934,7.19,173.1,173.08,2.1376]
[1717578245108,0.31005039,173.15,173.08,2.1377]
[1717578245109,7.19,173.09,173.08,2.1377]
[1717578245829,2.1371,173.13,173.09,2.1375]
[1717578246008,7.19,173.11,173.09,2.1375]
[1717578246397,7.19,173.11,173.1,2.1374]
[1717578246600,8.5461,173.18,173.13,2.1371]
[1717578246802,7.19,173.14,173.12,2.1371]
[1717578247096,7.19,173.14,173.13,2.1371]
[1717578247514,7.19,173.14,173.1,0.17]
[1717578247699,7.19,173.14,173.12,2.1371]
[1717578249304,7.19,173.13,173.12,2.1371]
[1717578249511,7.19,173.13,173.12,2.3071]
[1717578249706,7.19,173.13,173.12,0.17]
[1717578251220,2.1368,173.15,173.12,0.17]
[1717578251422,7.19,173.14,173.13,0.17]
[1717578253405,7.19,173.14,173.12,0.34]
[1717578253625,7.19,173.13,173.12,0.34]
[1717578254132,7.19,173.13,173.12,2.4772]
[1717578256130,7.19,173.14,173.12,2.4772]
[1717578261439,7.19,173.13,173.12,2.4772]
[1717578263626,7.19,173.13,173.12,0.34]
[1717578265237,7.19,173.13,173.12,2.4772]
[1717578265534,2.1368,173.16,173.12,2.4772]
[1717578265838,7.19,173.14,173.12,2.4772]
[1717578266244,7.19,173.13,173.12,2.4772]
[1717578267330,7.19,173.13,173.11,2.1372]
[1717578267531,7.19,173.12,173.1,2.1374]
[1717578267743,7.19,173.11,173.07,20.0]
[1717578267948,2.1371,173.13,173.1,2.1374]
[1717578268145,7.19,173.11,173.1,2.1374]
[1717578269135,7.19,173.11,173.09,2.1376]
[1717578269333,7.19,173.1,173.08,2.1376]
[1717578269649,7.19,173.09,173.08,2.1376]
[1717578270743,7.19,173.09,173.08,2.3076]
[1717578271342,7.19,173.09,173.08,2.4776]
[1717578272856,2.1371,173.13,173.08,0.34]
[1717578273031,2.1371,173.13,173.09,2.3075]
[1717578273228,7.19,173.1,173.09,2.3075]
[1717578277423,7.19,173.1,173.09,0.17]
[1717578279030,9.3274,173.1,173.09,0.17]
[1717578279244,7.19,173.1,173.09,0.17]
[1717578279435,7.19,173.1,173.08,2.4777]
[1717578279751,7.19,173.09,173.08,2.4777]
[1717578279953,7.19,173.09,173.08,0.17]
[1717578280128,9.3276,173.09,173.01,6.9977]
[1717578280326,7.19,173.04,173.03,2.1382]
[1717578282346,7.19,173.04,173.03,2.3082]
[1717578282642,7.19,173.04,173.03,2.4782]
[1717578283562,9.3283,173.04,173.01,0.4]
[1717578283737,7.19,173.02,173.01,0.4]
[1717578283933,9.3284,173.02,173.01,0.4]
[1717578284140,7.19,173.02,173.01,0.4]
[1717578285161,7.19,173.02,173.01,0.57]
[1717578287761,2.1383,173.03,173.01,0.4]
[1717578287950,7.19,173.02,173.01,0.4]
[1717578289965,9.3284,173.02,173.01,0.4]
[1717578304774,28.76,173.07,173.01,0.4]
[1717578304979,2.1384,173.02,173.01,0.4]
[1717578305185,9.3284,173.03,173.01,0.4]
[1717578305971,2.1384,173.02,173.01,0.4]
[1717578306376,9.3284,173.02,173.01,0.4]
[1717578306971,7.19,173.02,173.01,0.4]
[1717578307186,9.3284,173.03,173.01,0.4]
[1717578307985,2.1384,173.02,173.01,0.4]
[1717578308195,9.3284,173.02,173.01,0.4]
[1717578309289,13.91535039,173.02,173.01,0.4]
[1717578309588,28.5746,173.02,173.01,0.4]
[1717578310280,54.8194,173.02,173.01,0.4]
[1717578314203,54.8194,173.02,172.91,0.4]
[1717578314204,2.1395,172.94,172.91,0.4]
[1717578314404,2.1395,172.94,172.91,2.5398]
[1717578314565,7.19,172.95,172.91,2.5398]
[1717578314772,7.19,172.95,172.92,2.1397]
[1717578315067,9.3294,172.95,172.92,2.1397]
[1717578315270,9.3294,172.94,172.91,2.5397]
[1717578315468,7.19,172.93,172.91,2.5397]
[1717578315669,7.19,172.93,172.92,0.17]
[1717578320610,8.5546,173.01,172.92,22.0034]
[1717578320784,7.19,173.01,172.99,2.1388]
[1717578320989,2.1385,173.02,172.98,2.1388]
[1717578321304,9.3284,173.02,172.99,2.4788]
[1717578321486,7.19,173.02,172.99,2.4788]
[1717578321810,9.3284,173.02,172.99,2.4788]
[1717578322108,7.19,173.04,173.01,2.1385]
[1717578322314,2.1382,173.05,173.01,2.1385]
[1717578322608,7.19,173.04,173.01,2.1385]
[1717578323076,8.5494,173.12,173.0,7.19]
[1717578323281,7.19,173.07,173.03,2.1382]
[1717578323709,9.3278,173.07,173.03,2.1382]
[1717578323891,2.1377,173.08,173.04,2.1382]
[1717578324201,7.19,173.07,173.04,2.1382]
[1717578324981,7.19,173.07,173.03,2.4782]
[1717578325495,9.27505959,173.14,173.06,2.1379]
[1717578325805,7.19,173.1,173.07,0.34]
[1717578325988,7.19,173.1,173.07,2.4778]
[1717578326399,0.4,173.14,173.07,0.34]
[1717578326600,2.1372,173.12,173.07,2.1377]
[1717578326808,9.3272,173.12,173.08,0.34]
[1717578326992,2.1372,173.12,173.08,0.34]
[1717578327193,9.3272,173.12,173.08,0.34]
[1717578327613,2.1372,173.12,173.08,0.34]
[1717578327821,2.1371,173.13,173.08,8.5125]
[1717578327996,0.4,173.14,173.09,45.0]
[1717578328322,0.4,173.14,173.1,2.1374]
[1717578328506,9.727,173.14,173.09,47.1375]
[1717578328710,2.1374,173.11,173.08,45.0]
[1717578329009,4.6741,173.14,173.08,45.0]
[1717578329010,7.19,173.09,173.08,45.0]
[1717578329205,7.19,173.09,173.08,45.34]
[1717578329401,7.19,173.1,173.08,45.34]
[1717578329607,7.19,173.11,173.08,47.4777]
[1717578329811,2.537,173.14,173.09,2.4775]
[1717578330015,2.537,173.14,173.1,2.1374]
[1717578330319,7.19,173.13,173.1,2.1374]
[1717578330496,7.19,173.13,173.09,2.4775]
[1717578330698,2.537,173.14,173.09,2.4775]
[1717578330897,0.4,173.14,173.1,6.2668]
[1717578331117,0.4,173.14,173.11,51.6068]
[1717578331302,0.4,173.14,173.12,2.3072]
[1717578331604,0.4,173.14,173.13,0.17]
[1717578332415,0.4,173.14,173.12,0.34]
[1717578334425,7.59,173.14,173.12,0.34]
[1717578335325,0.4,173.14,173.12,0.34]
[1717578335525,7.59,173.14,173.12,0.34]
[1717578336515,7.19,173.13,173.11,45.0]
[1717578336709,7.19,173.12,173.11,45.0]
[1717578338806,7.19,173.12,173.11,47.1373]
[1717578339313,7.19,173.12,173.11,45.0]
[1717578342029,7.19,173.12,173.11,47.1373]
[1717578361945,7.19,173.12,173.04,16.1997]
[1717578362249,7.19,173.07,173.06,2.1379]
[1717578363038,14.961,173.12,173.07,2.1377]
[1717578363039,2.1374,173.11,173.07,2.1377]
[1717578363244,2.1372,173.12,173.08,2.1377]
[1717578363427,7.19,173.1,173.08,2.1377]
[1717578363838,2.1372,173.12,173.08,2.1377]
[1717578364138,7.19,173.1,173.08,2.1377]
[1717578364343,7.19,173.1,173.07,2.1377]
[1717578364516,7.19,173.09,173.07,2.1377]
[1717578365138,7.19,173.09,173.08,2.1377]
[1717578365622,7.19,173.09,173.08,2.3077]
[1717578365939,2.1371,173.13,173.1,2.1374]
[1717578366141,7.19,173.12,173.1,2.1374]
[1717578366339,7.19,173.11,173.1,2.1374]
[1717578366837,7.19,173.11,173.09,2.1375]
[1717578367043,2.1371,173.13,173.09,2.1375]
[1717578367249,7.19,173.12,173.09,2.1375]
[1717578367455,7.19,173.11,173.09,2.1375]
[1717578368321,6.9978769,173.1,173.09,2.1375]
[1717578368521,6.9978769,173.1,173.09,2.4775]
[1717578369225,2.1372,173.12,173.09,2.4775]
[1717578369423,7.19,173.11,173.09,0.34]
[1717578370039,7.19,173.11,173.09,2.4775]
[1717578371645,7.19,173.11,173.09,0.34]
[1717578372728,7.19,173.11,173.09,2.4776]
[1717578373649,7.19,173.11,173.05,120.0]
[1717578373866,7.19,173.11,173.06,45.0]
[1717578374230,7.19,173.11,173.06,51.0446]
[1717578375043,2.1371,173.13,173.06,51.6094]
[1717578375247,7.19,173.11,173.08,6.6094]
[1717578375459,7.19,173.11,173.09,45.0]
[1717578375751,7.19,173.11,173.1,0.34]
[1717578376451,2.1372,173.12,173.1,0.34]
[1717578376628,7.19,173.11,173.1,0.34]
[1717578379956,0.4,173.14,173.1,0.34]
[1717578380136,7.19,173.13,173.1,0.34]
[1717578380651,2.537,173.14,173.1,0.34]
[1717578381054,2.537,173.14,173.1,6.4374]
[1717578381352,7.19,173.13,173.11,45.0]
[1717578381532,7.19,173.13,173.12,0.34]
[1717578383451,9.3271,173.13,173.06,6.6542]
[1717578383630,7.19,173.1,173.07,20.0]
[1717578384649,7.19,173.1,173.08,0.17]
[1717578384954,7.19,173.1,173.08,45.34]
[1717578386043,7.19,173.09,173.08,45.34]
[1717578386552,7.19,173.09,173.03,380.3]
[1717578386553,9.3277,173.09,173.03,380.3]
[1717578386759,7.19,173.06,173.03,380.3]
[1717578388138,7.19,173.06,173.02,6.1045]
[1717578388347,7.19,173.06,173.03,20.0]
[1717578388739,7.19,173.06,173.04,0.34]
[1717578389053,7.19,173.08,173.05,6.3176]
[1717578389243,7.19,173.08,173.06,45.34]
[1717578390345,7.19,173.09,173.06,45.34]
[1717578390531,2.1373,173.12,173.06,45.34]
[1717578390738,7.19,173.1,173.06,45.34]
[1717578390949,7.19,173.1,173.06,51.6576]
[1717578391871,7.19,173.09,173.06,45.34]
[1717578392055,7.19,173.09,173.07,45.0]
[1717578392366,2.1373,173.11,173.08,0.34]
[1717578392964,7.19,173.09,173.08,0.34]
[1717578395964,2.1373,173.12,173.08,0.34]
[1717578396169,7.19,173.09,173.08,0.34]
[1717578396963,2.1373,173.12,173.08,0.34]
[1717578397164,7.19,173.09,173.08,0.34]
[1717578397465,7.19,173.1,173.08,0.34]
[1717578397664,7.19,173.11,173.09,0.17]
[1717578397871,7.19,173.11,173.07,45.34]
[1717578398051,7.19,173.1,173.07,45.34]
[1717578398466,20.0,173.13,173.07,45.34]
[1717578398664,7.19,173.08,173.07,45.34]
[1717578400759,7.19,173.1,173.07,45.34]
[1717578401076,0.4,173.14,173.08,45.0]
[1717578401265,7.19,173.12,173.09,0.34]
[1717578401573,0.4,173.14,173.09,0.34]
[1717578401787,7.19,173.12,173.09,0.34]
[1717578402156,7.19,173.12,173.09,120.34]
[1717578402362,7.19,173.12,173.1,45.0]
[1717578402667,7.19,173.12,173.11,0.34]
[1717578405865,0.4,173.14,173.11,0.34]
[1717578406059,7.19,173.12,173.11,0.34]
[1717578406672,0.4,173.14,173.11,0.34]
[1717578407181,7.19,173.12,173.11,0.34]
[1717578408565,7.19,173.13,173.11,0.34]
[1717578409163,7.19,173.12,173.11,0.34]
[1717578411883,0.4,173.14,173.11,0.34]
[1717578412064,7.19,173.12,173.11,0.34]
[1717578414691,7.19,173.13,173.11,0.34]
[1717578419867,0.4,173.14,173.02,85.09445384]
[1717578420188,0.4,173.14,173.03,386.3165]
[1717578420189,2.1374,173.11,173.03,386.3165]
[1717578420370,7.19,173.06,173.03,455.0260777]
[1717578420570,7.19,173.06,173.03,386.3165]
[1717578420781,7.19,173.07,173.03,386.3165]
[1717578420979,7.19,173.07,173.04,68.7095777]
[1717578421470,7.19,173.08,173.04,68.7095777]
[1717578421678,7.19,173.08,173.05,45.34]
[1717578421865,7.19,173.08,173.05,0.34]
[1717578422065,2.1372,173.12,173.05,0.34]
[1717578422287,2.1371,173.13,173.05,0.34]
[1717578422589,7.19,173.09,173.06,68.7095777]
[1717578422788,7.19,173.09,173.07,45.34]
[1717578424984,7.19,173.09,173.07,0.34]
[1717578425210,7.19,173.09,173.08,45.0]
[1717578425386,7.19,173.09,173.08,0.34]
[1717578427709,7.19,173.09,173.03,74.7260777]
[1717578427911,7.19,173.07,173.04,20.17]
[1717578428511,7.19,173.07,173.04,20.0]
[1717578428687,7.19,173.07,173.01,75.8995777]
[1717578428688,7.19,173.07,173.02,20.0]
[1717578428894,7.19,173.07,173.02,146.5534]
[1717578429618,7.19,173.07,173.03,45.0]
[1717578429803,7.19,173.07,173.04,20.17]
[1717578429998,7.19,173.07,173.05,45.17]
[1717578430310,7.19,173.07,173.06,0.17]
[1717578434508,7.19,173.07,173.05,45.17]
[1717578434718,7.19,173.06,172.99,5.778]
[1717578434900,7.19,173.06,172.98,513.6207]
[1717578434901,7.19,173.03,172.98,6.1307]
[1717578436193,7.19,173.03,172.99,45.17]
[1717578436501,7.19,173.03,172.99,45.34]
[1717578436708,7.19,173.03,173.0,20.0]
[1717578436907,7.19,173.03,173.01,45.34]
[1717578438012,7.19,173.04,173.01,45.34]
[1717578438204,7.19,173.05,173.01,45.34]
[1717578440623,7.19,173.06,173.01,45.34]
[1717578445005,7.19,173.05,173.01,45.34]
[1717578446528,7.19,173.06,173.02,120.0]
[1717578446830,7.19,173.06,173.03,45.34]
[1717578447209,7.19,173.07,173.03,45.34]
[1717578448128,2.1377,173.08,173.03,45.34]
[1717578448424,7.19,173.07,173.03,45.34]
[1717578448733,7.19,173.06,173.03,45.34]
[1717578454935,2.1376,173.09,173.03,45.34]
[1717578455239,7.19,173.07,173.03,45.34]
[1717578455829,2.1376,173.09,173.03,45.34]
[1717578456338,7.19,173.07,173.03,45.34]
[1717578456521,2.1376,173.09,173.03,45.34]
[1717578456723,7.19,173.07,173.03,45.34]
[1717578457221,2.1376,173.09,173.03,45.34]
[1717578457521,7.19,173.07,173.03,45.34]
[1717578458439,2.1377,173.09,173.03,45.34]
[1717578458835,7.19,173.07,173.03,45.34]
[1717578459333,2.1377,173.09,173.03,45.34]
[1717578459513,7.19,173.07,173.03,45.34]
[1717578459941,2.1377,173.09,173.03,45.34]
[1717578460119,7.19,173.07,173.03,45.34]
[1717578460440,2.1377,173.09,173.03,45.34]
[1717578461023,7.19,173.07,173.03,45.34]
[1717578461216,2.1377,173.09,173.03,45.34]
[1717578461446,2.1374,173.1,173.03,45.34]
[1717578461610,7.19,173.06,173.03,45.34]
[1717578462627,7.19,173.05,173.03,45.34]
[1717578464041,7.19,173.05,173.04,45.0]
[1717578464219,7.19,173.05,173.04,0.34]
[1717578468525,2.1376,173.09,173.04,0.34]
[1717578468726,7.19,173.06,173.05,0.34]
[1717578472624,2.1376,173.09,173.05,0.34]
[1717578472823,2.1374,173.11,173.05,0.34]
[1717578473034,7.19,173.08,173.05,45.34]
[1717578474641,2.1374,173.11,173.05,45.34]
[1717578474946,7.19,173.08,173.05,45.34]
[1717578480046,2.1374,173.11,173.05,45.34]
[1717578480349,7.19,173.08,173.05,51.7681]
[1717578481360,7.19,173.08,173.06,120.0]
[1717578481547,7.19,173.08,173.07,45.34]
[1717578484652,2.1373,173.11,173.07,45.34]
[1717578484953,7.19,173.08,173.07,45.34]
[1717578486328,9.3277,173.08,173.01,91.44093532]
[1717578486533,7.19,173.05,173.02,20.0]
[1717578486734,7.19,173.05,173.02,95.95073532]
[1717578486929,7.19,173.05,173.02,26.2023]
[1717578487136,7.19,173.05,173.02,102.15303532]
[1717578487352,7.19,173.05,173.02,26.2023]
[1717578487541,2.1376,173.09,173.02,102.15303532]
[1717578487728,7.19,173.05,173.03,0.17]
[1717578487939,7.19,173.05,173.03,0.34]
[1717578488251,7.19,173.05,173.03,45.34]
[1717578490055,7.19,173.06,173.03,45.34]
[1717578491844,2.1376,173.09,173.03,165.34]
[1717578492155,7.19,173.06,173.03,165.34]
[1717578492454,7.19,173.07,173.03,165.34]
[1717578493171,7.19,173.07,173.05,120.0]
[1717578493463,7.19,173.07,173.06,45.34]
[1717578496039,2.1375,173.1,173.06,45.34]
[1717578496244,7.19,173.07,173.06,45.34]
[1717578505465,7.19,173.07,173.01,5.778]
[1717578505769,7.19,173.07,173.0,500.3]
[1717578505770,7.19,173.02,173.0,500.3]
[1717578505980,7.19,173.01,173.0,500.3]
[1717578507246,7.19,173.01,173.0,500.47]
[1717578507468,7.19,173.01,173.0,545.64]
[1717578516779,7.19,173.02,173.0,545.64]
[1717578516972,7.19,173.02,173.01,45.34]
[1717578518680,2.1378,173.07,173.01,45.34]
[1717578519184,7.19,173.04,173.01,45.34]
[1717578519373,7.19,173.03,173.01,45.34]
[1717578531077,7.19,173.02,173.01,45.34]
[1717578531388,2.1382,173.05,173.01,45.34]
[1717578531691,7.19,173.02,173.01,45.34]
[1717578538791,2.1381,173.05,173.01,45.34]
[1717578538981,7.19,173.02,173.01,45.34]
[1717578540378,2.138,173.06,173.01,45.34]
[1717578540580,7.19,173.05,173.01,45.34]
[1717578540789,2.1379,173.07,173.01,45.34]
[1717578541276,7.19,173.05,173.01,45.34]
[1717578542779,7.19,173.04,173.01,45.34]
[1717578549201,2.1376,173.09,173.02,120.0]
[1717578549385,2.1376,173.09,173.03,45.34]
[1717578549717,7.19,173.06,173.03,45.34]
[1717578549891,7.19,173.05,173.03,45.34]
[1717578550080,2.1376,173.09,173.03,45.34]
[1717578550284,7.19,173.06,173.03,45.34]
[1717578550498,7.19,173.07,173.03,45.34]
[1717578551207,7.19,173.07,173.04,2.3109785]
[1717578551510,7.19,173.07,173.05,0.34]
[1717578552081,7.19,173.06,173.04,0.34]
[1717578552286,7.19,173.05,173.0,120.0]
[1717578552486,7.19,173.01,173.0,120.0]
[1717578552797,7.19,173.01,172.98,5.778]
[1717578552995,7.19,173.0,172.98,5.778]
[1717578553995,7.19,173.0,172.99,45.34]
[1717578557416,7.19,173.01,172.99,45.34]
[1717578563419,7.19,173.0,172.95,6.6242]
[1717578563626,7.19,172.97,172.93,6.4587]
[1717578563832,7.19,172.96,172.93,6.4587]
[1717578564028,7.19,172.96,172.91,0.4]
[1717578564197,7.19,172.96,172.93,118.96998933]
[1717578564394,7.19,172.97,172.91,0.4]
[1717578564607,7.19,172.98,172.94,118.96998933]
[1717578565093,7.19,172.98,172.93,6.2933]
[1717578565402,7.19,172.99,172.95,0.17]
[1717578565598,7.19,172.99,172.94,119.30998933]
[1717578566214,7.19,172.99,172.94,0.34]
[1717578566437,7.19,172.99,172.94,119.30998933]
[1717578566913,7.19,172.99,172.94,80.81850545]
[1717578567918,10.5952,173.03,172.95,80.47850545]
[1717578568141,7.19,172.98,172.96,0.34]
[1717578571598,2.1386,173.01,172.96,0.34]
[1717578571813,7.19,172.98,172.96,0.34]
[1717578573917,10.5952,173.03,172.97,80.47850545]
[1717578573918,6.3185,173.03,172.97,80.47850545]
[1717578574119,2.1384,173.03,172.98,0.34]
[1717578574306,7.19,173.0,172.98,0.34]
[1717578574709,45.5285,173.07,172.98,80.81850545]
[1717578574917,7.19,173.01,172.98,0.34]
[1717578575225,7.19,173.01,172.98,80.81850545]
[1717578575422,7.19,173.0,172.98,0.34]
[1717578578402,7.19,173.0,172.98,80.81850545]
[1717578578706,7.19,173.0,172.98,0.34]
[1717578579115,7.19,173.0,172.98,80.81850545]
[1717578579307,7.19,173.0,172.98,0.34]
[1717578579511,2.1382,173.04,172.98,80.81850545]
[1717578579721,7.19,173.0,172.98,80.81850545]
[1717578579923,7.19,173.0,172.98,72.74621189]
[1717578580227,2.1382,173.04,172.98,0.34]
[1717578580430,21.0443,173.07,172.98,0.34]
[1717578580431,43.3908,173.07,172.98,0.34]
[1717578580726,7.19,173.02,172.99,72.40621189]
[1717578580926,7.19,173.02,173.0,0.34]
[1717578581102,2.138,173.06,173.0,0.34]
[1717578581426,15.1671,173.1,173.02,72.40621189]
[1717578581427,7.19,173.05,173.02,72.40621189]